[Event "Berliner Einzelmeisterschaft 2002"]
[Site "Berlin"]
[Date "2022.04.21"]
[Round "7.1"]
[White "Florstedt, Johannes"]
[Black "Lagunow, Raphael"]
[Result "0-1"]
[ECO "C47"]
[WhiteElo "2316"]
[BlackElo "2385"]
[Annotator "TheRocket"]
[PlyCount "122"]
[EventDate "2022.??.??"]
[EventCountry "GER"]
[SourceTitle "SV Mattnetz Berlin e.V."]
[SourceDate "2022.04.23"]
[SourceVersion "1"]
[SourceVersionDate "2022.04.23"]
[SourceQuality "1"]
[TimeControl "40/5400+30:1800+30"]

{[%evp 17,122,-2,0,0,9,0,13,12,22,0,0,0,0,0,0,0,0,-13,-14,0,0,0,-2,-21,-22,-21,
-18,-18,-12,-30,0,0,0,0,0,0,0,-52,0,0,0,0,0,0,0,0,0,0,0,0,0,0,0,-45,-45,-33,
-28,-166,-154,-142,-133,-166,-99,-147,-155,-155,-155,-155,-155,-235,-179,-203,
-181,-260,-258,-531,-482,-539,-562,-539,-460,-1429,-1304,-1264,-1832,-1758,
-1681,-2694,-2520,-4433,-4714,-4913,-4612,-29979,-29980,-29980,-29980,-29979,
-29980,-29981,-29982,-29982,-29983,-29986,-29987,-29987,-29986]} 1. e4 {
[%emt 0:04:32]} e5 {[%emt 0:02:30]} 2. Nf3 {[%emt 0:00:14]} Nc6 {[%emt 0:00:12]
} 3. Nc3 {[%emt 0:00:49]} Nf6 {[%emt 0:00:23]} 4. d4 {[%emt 0:00:05]} exd4 {
[%emt 0:00:53]} 5. Nxd4 {[%emt 0:00:06]} Bb4 {[%emt 0:02:29]} 6. Nxc6 {[%emt 0:
00:42]} bxc6 {[%emt 0:00:08]} 7. Bd3 {[%emt 0:00:06]} d5 {[%emt 0:00:42]} 8.
exd5 {[%emt 0:00:23]} cxd5 {[%emt 0:02:37]} 9. O-O {[%emt 0:00:09]} O-O {
[%emt 0:00:12]} 10. h3 {[%emt 0:00:08] C47: Scotch Four Knights and Four
Knights with 4 g3.} Rb8 {[%emt 0:01:06][%cal Ba8b8,Bb8b6,Bb6e6][%mdl 32]} 11.
Qf3 {[%emt 0:00:32]} Rb6 $1 {[%emt 0:04:49][%mdl 4] is now more promising than
11...c6.} 12. a3 {[%emt 0:06:33] The position is equal.} Be7 {[%emt 0:18:10]}
13. Na4 {[%emt 0:09:22]} Re6 {[%emt 0:03:53]} 14. Bf5 {[%emt 0:11:24]} Ra6 {
[%emt 0:02:39] [#]} 15. Bxc8 $146 {[%emt 0:03:45]} ({Predecessor:} 15. b3 Bxf5
16. Qxf5 Qd7 17. Qxd7 Nxd7 18. Bb2 Rc6 19. Rad1 Rxc2 20. Rxd5 Nb6 21. Nxb6 axb6
{0-1 (38) Goryachkina,A (2518)-Ju,W (2575) St Petersburg 2018}) 15... Qxc8 {
[%emt 0:01:02]} 16. Nc3 {[%emt 0:00:23]} Qb7 {[%emt 0:18:15]} 17. Re1 {[%emt 0:
06:51]} (17. Rd1 $5 {[%cal Rc3d5]}) 17... Re6 {[%emt 0:02:03]} 18. Rxe6 {
[%emt 0:04:52]} fxe6 {[%emt 0:00:05]} 19. Qe2 {[%emt 0:00:06]} Kh8 {[%emt 0:08:
59]} 20. Qb5 {[%emt 0:13:45]} (20. Qxe6 {is more complex.} Bc5 21. Qe2 Ne4 22.
Nxe4 dxe4 23. Be3) 20... Rb8 {[%emt 0:03:32]} 21. Qxb7 {[%emt 0:06:33]} Rxb7 {
[%emt 0:00:02]} 22. Na4 {[%emt 0:00:40]} Nd7 {[%emt 0:04:23]} 23. Bf4 {[%emt 0:
03:59]} Bd6 {[%emt 0:03:33]} 24. Bxd6 {[%emt 0:04:57]} cxd6 $11 {[%emt 0:00:06]
[%mdl 4096] Endgame KRN-KRN} 25. Re1 {[%emt 0:04:17]} e5 {[%emt 0:04:15]} 26.
Rd1 {[%emt 0:00:26]} Nf6 {[%emt 0:04:34]} 27. Rd3 {[%emt 0:00:14]} (27. c4 $11)
27... Rc7 {[%emt 0:02:08]} (27... Kg8 $15) 28. Rc3 {[%emt 0:00:57]} Ne8 {
[%emt 0:03:25]} 29. Kf1 {[%emt 0:03:35]} Kg8 {[%emt 0:00:05]} 30. Ke2 {[%emt 0:
01:34]} Kf7 {[%emt 0:01:37]} 31. Kd3 {[%emt 0:00:14]} Ke6 {[%emt 0:01:21]} 32.
Rxc7 {[%emt 0:05:33]} Nxc7 {[%emt 0:00:01] KN-KN} 33. Nc3 {[%emt 0:00:16]} Kd7
{[%emt 0:02:59]} 34. g3 {[%emt 0:04:47]} Kc6 {[%emt 0:00:49]} 35. f4 {[%emt 0:
01:54]} Ne6 {[%emt 0:01:14]} 36. fxe5 $1 {[%emt 0:01:15]} dxe5 {[%emt 0:00:06]}
37. Ne2 {[%emt 0:01:09]} (37. b4 $1 $11 {and White stays safe.}) 37... Nc5+ $19
{[%emt 0:01:17]} 38. Kc3 {[%emt 0:00:13]} Ne4+ {[%emt 0:00:39]} 39. Kb4 {
[%emt 0:00:26]} Kb6 {[%emt 0:01:41]} (39... Nf2 $1 $19 40. Ng1 Nd1) 40. a4 {
[%emt 0:01:41]} (40. h4 $142) 40... a5+ $17 {[%emt 0:00:29]} 41. Kb3 {[%emt 0:
30:59]} Kc5 {[%emt 0:08:54]} 42. c3 {[%emt 0:00:00]} g5 $1 {[%emt 0:01:40]
[%cal Bg7g5,Bg5g4][%mdl 32]} 43. h4 {[%emt 0:00:00]} (43. Kc2 $17) 43... g4 $1
$19 {[%emt 0:02:55] White must now prevent ...d4.} 44. Kc2 {[%emt 0:00:00]} h5
{[%emt 0:02:19]} 45. Kd3 {[%emt 0:00:00] [#]} (45. b3 $142) 45... Nd6 $1 {
[%emt 0:00:58]} 46. Nc1 $2 {[%emt 0:00:00] [#]} (46. Kd2 {was called for.})
46... Nf5 $1 {[%emt 0:00:35]} ({Worse is} 46... e4+ 47. Ke2 $15) 47. Ne2 {
[%emt 0:00:00]} e4+ {[%emt 0:02:34]} 48. Kd2 {[%emt 0:00:00]} Kc4 {[%emt 0:00:
38]} 49. Ke1 {[%emt 0:00:00]} (49. Kc1 $142 Kb3 50. Kb1) 49... Kb3 {[%emt 0:05:
10][%csl Ba4,Bb2]} 50. Nf4 {[%emt 0:00:01]} Kxb2 {[%emt 0:07:13]} 51. Nxd5 {
[%emt 0:00:05]} Kb3 {[%emt 0:00:20]} 52. Nf6 {[%emt 0:00:32]} Nxg3 {[%emt 0:00:
39]} 53. Kf2 {[%emt 0:01:58]} Nf5 {[%emt 0:00:07]} 54. Nxh5 {[%emt 0:00:15]}
Kxa4 {[%emt 0:00:31] ( -> ...Kb3)} 55. Nf6 {[%emt 0:02:29]} e3+ {[%emt 0:00:05]
Black mates.} 56. Ke2 {[%emt 0:00:03]} g3 {[%emt 0:00:43]} 57. Kf3 {[%emt 0:00:
05]} Kb3 {[%emt 0:02:26]} 58. Ne4 {[%emt 0:02:48]} a4 {[%emt 0:00:38][%cal
Ba5a4,Ba4a3][%mdl 32]} 59. h5 {[%emt 0:00:30]} a3 {[%emt 0:00:14]} 60. Nxg3 {
[%emt 0:00:08]} Nxg3 {[%emt 0:01:17]} 61. h6 {[%emt 0:00:04] [#]} Ne4 $1 {
[%emt 0:00:20][%mdl 512] Weighted Error Value: White=0.48/Black=0.04 (flawless)
} 0-1

[Event "Berliner Einzelmeisterschaft 2002"]
[Site "Berlin"]
[Date "2022.04.21"]
[Round "7.2"]
[White "Piz, Maxim"]
[Black "Stern, Rene"]
[Result "0-1"]
[ECO "C68"]
[WhiteElo "2143"]
[BlackElo "2510"]
[Annotator "TheRocket"]
[PlyCount "66"]
[EventDate "2022.??.??"]
[EventCountry "GER"]
[SourceTitle "SV Mattnetz Berlin e.V."]
[SourceDate "2022.04.23"]
[SourceVersion "1"]
[SourceVersionDate "2022.04.23"]
[SourceQuality "1"]
[TimeControl "40/5400+30:1800+30"]

{[%evp 10,66,1,-10,0,0,0,-27,-8,-18,0,-30,-29,-52,-53,-75,-79,-77,-77,-77,-66,
-69,-62,-97,-90,-108,-95,-163,-121,-144,-147,-133,-150,-156,-143,-175,-183,
-236,-229,-228,-220,-300,-310,-317,-284,-285,-299,-470,-474,-893,-893,-966,
-948,-6395,-6391,-6170,-6170,-2383,-1252]} 1. e4 {[%emt 0:02:41]} e5 {[%emt 0:
04:15]} 2. Nf3 {[%emt 0:00:19]} Nc6 {[%emt 0:00:06]} 3. Bb5 {[%emt 0:00:06]} a6
{[%emt 0:00:15]} 4. Bxc6 {[%emt 0:00:06]} dxc6 {[%emt 0:00:08]} 5. d3 {[%emt 0:
00:06]} Bd6 {[%emt 0:11:52]} 6. Nbd2 {[%emt 0:00:26]} f6 {[%emt 0:02:36] C68:
Ruy Lopez: Exchange Variation, sidelines.} 7. Nc4 {[%emt 0:00:24]} Be6 {
[%emt 0:00:51]} 8. Nxd6+ {[%emt 0:00:43]} cxd6 {[%emt 0:00:25] Black has an
edge.} 9. O-O {[%emt 0:00:47]} Ne7 {[%emt 0:03:44] [#]} 10. Ne1 $146 {[%emt 0:
02:12]} ({Predecessor:} 10. d4 O-O 11. h3 Qc7 {½-½ (11) Damjanovic,M-Medina
Garcia,A Solingen 1968}) 10... Ng6 {[%emt 0:03:55]} 11. Be3 {[%emt 0:00:36]}
O-O {[%emt 0:01:19]} 12. d4 {[%emt 0:00:18] [#]} Bc4 $1 {[%emt 0:12:46]
Threatens to win with ...d5.} 13. Nd3 {[%emt 0:00:10]} d5 {[%emt 0:00:58]} 14.
exd5 {[%emt 0:03:24]} exd4 {[%emt 0:01:03]} ({Of course not} 14... Qxd5 $6 15.
b3 Bxd3 16. Qxd3 $11) (14... Bxd5 $6 15. dxe5 fxe5 16. f3 $11) 15. Bxd4 {
[%emt 0:00:23]} Qxd5 {[%emt 0:00:51]} 16. Be3 {[%emt 0:01:49]} Rad8 $40 {
[%emt 0:02:53][%cal Ba8d8,Bd8d7,Bd7d5][%mdl 160] Black attacks with force.} (
16... Bxa2 $2 17. b3 $18) 17. Bb6 {[%emt 0:00:20]} Rd7 {[%emt 0:10:22]} 18. Qg4
{[%emt 0:10:41]} (18. b3 $17 Bxd3 19. Qxd3) 18... f5 {[%emt 0:04:58]} 19. Qg5 {
[%emt 0:00:14]} Bxd3 {[%emt 0:01:47]} 20. cxd3 {[%emt 0:01:36]} Qb5 {[%emt 0:
00:35]} 21. Be3 {[%emt 0:00:24]} Rd5 {[%emt 0:09:30] Hoping for ...f4. &Nero
is more active.} ({Weaker is} 21... Qxb2 22. Bc5 Qf6 23. Qg3 $17) 22. f4 {
[%emt 0:01:57]} Rxd3 {[%emt 0:00:55]} 23. Bf2 {[%emt 0:00:11]} (23. Rae1 $142)
23... Rf6 $19 {[%emt 0:07:23]} ({Avoid the trap} 23... Qxb2 $2 24. Rab1 Qc2 25.
a3) 24. g3 {[%emt 0:00:54]} Qxb2 {[%emt 0:01:57]} 25. Rab1 {[%emt 0:00:50]}
Qxa2 {[%emt 0:00:11]} 26. Rxb7 {[%emt 0:00:10]} h6 {[%emt 0:00:12]} 27. Qh5 {
[%emt 0:00:07] [#]} Qd5 $1 {[%emt 0:00:39] ...Kh7 is the strong threat.} 28.
Rb8+ {[%emt 0:03:06]} (28. Re1 $142) 28... Kh7 {[%emt 0:00:07][%cal Og6f4]
Strongly threatening ...Nxf4! Black is clearly winning.} 29. Qe2 {[%emt 0:03:
42]} (29. Rb2 $142 c5 30. Re1) 29... Re6 {[%emt 0:02:10]} 30. Qb2 {[%emt 0:03:
16] [#]} Nxf4 $1 {[%emt 0:02:22][%cal Rf4h3][%mdl 512]} 31. Rh8+ {[%emt 0:00:
06]} (31. gxf4 Rd2) 31... Kxh8 {[%emt 0:00:24][%cal Rf4h3]} 32. Qb8+ {[%emt 0:
00:01]} Kh7 {[%emt 0:00:16][%cal Rf4e2]} 33. Qxf4 {[%emt 0:00:02]} Rd1 {
[%emt 0:00:18] Black took control after the opening. Weighted Error Value:
White=0.73/Black=0.03 (flawless)} 0-1

[Event "Berliner Einzelmeisterschaft 2002"]
[Site "Berlin"]
[Date "2022.04.21"]
[Round "7.3"]
[White "Mirzoev, Emil"]
[Black "Ermitsch, Magnus"]
[Result "1-0"]
[ECO "B22"]
[WhiteElo "2460"]
[BlackElo "2127"]
[Annotator "TheRocket"]
[PlyCount "75"]
[EventDate "2022.??.??"]
[EventCountry "GER"]
[SourceTitle "SV Mattnetz Berlin e.V."]
[SourceDate "2022.04.23"]
[SourceVersion "1"]
[SourceVersionDate "2022.04.23"]
[SourceQuality "1"]
[TimeControl "40/5400+30:1800+30"]

{[%evp 13,75,14,12,6,7,9,2,4,10,4,9,0,0,4,8,10,15,0,14,0,7,10,42,35,44,40,41,
13,35,-7,14,11,25,14,16,16,21,10,31,21,26,27,35,31,39,64,97,112,118,113,125,
109,186,166,235,221,214,171,306,194,452,476,460,291]} 1. e4 {[%emt 0:07:26]} c5
{[%emt 0:00:38]} 2. Nf3 {[%emt 0:00:04]} e6 {[%emt 0:00:17]} 3. c3 {[%emt 0:00:
03]} Nf6 {[%emt 0:00:18]} 4. e5 {[%emt 0:00:21]} Nd5 {[%emt 0:00:11]} 5. Bc4 {
[%emt 0:00:03]} d6 {[%emt 0:01:20]} 6. d4 {[%emt 0:00:54]} cxd4 {[%emt 0:00:22]
} 7. cxd4 {[%emt 0:00:04]} Be7 {[%emt 0:00:15]} 8. O-O {[%emt 0:00:09] B22:
Sicilian: 2 c3.} O-O {[%emt 0:00:13]} 9. Qe2 {[%emt 0:00:03]} b6 {[%emt 0:00:
29]} 10. Rd1 {[%emt 0:01:08] The position is equal.} Bb7 {[%emt 0:00:19]} 11.
Bxd5 {[%emt 0:00:15]} exd5 {[%emt 0:00:19]} 12. Nc3 {[%emt 0:00:05]} Na6 {
[%emt 0:00:39]} 13. e6 {[%emt 0:00:54] [#]} h6 $146 {[%emt 0:00:28]} ({
Predecessor:} 13... Nc7 14. exf7+ Rxf7 15. b4 h6 16. a4 Bc8 17. Ne1 Be6 18. Be3
Qd7 19. Rdc1 a6 {1-0 (51) Karpatchev,A (2489)-Groetzbach,J (2184) Lueneburg
2016}) 14. exf7+ {[%emt 0:12:07]} Rxf7 {[%emt 0:00:18]} 15. Be3 {[%emt 0:11:34]
} Nc7 {[%emt 0:04:32]} 16. b4 {[%emt 0:00:15]} Bc8 {[%emt 0:02:40]} 17. Ne1 {
[%emt 0:01:14]} Be6 {[%emt 0:16:02]} 18. Nd3 {[%emt 0:02:46]} Bg5 {[%emt 0:05:
18]} 19. b5 {[%emt 0:05:04]} Qf6 {[%emt 0:21:10]} 20. Qd2 {[%emt 0:26:35]} Raf8
{[%emt 0:07:35]} 21. f3 {[%emt 0:09:29]} Qg6 {[%emt 0:05:31] [#] White must
now prevent ...Bxe3+.} 22. Bxg5 {[%emt 0:01:49]} hxg5 {[%emt 0:00:20]} 23. Rf1
{[%emt 0:04:07]} g4 {[%emt 0:03:05]} 24. fxg4 {[%emt 0:01:38]} Qxg4 {[%emt 0:
03:04]} 25. Rxf7 {[%emt 0:00:30]} Rxf7 {[%emt 0:02:12]} 26. Qe3 {[%emt 0:01:36]
} Bd7 {[%emt 0:02:41]} 27. a4 {[%emt 0:03:01]} Ne6 {[%emt 0:01:04]} 28. Ne2 {
[%emt 0:02:58]} Re7 {[%emt 0:12:45]} 29. h3 {[%emt 0:02:03]} Qg6 {[%emt 0:03:
30]} 30. Nb4 {[%emt 0:02:10][%cal Bd3b4,Bb4d5,Bd5c3,Bc3d5][%mdl 32]} Re8 {
[%emt 0:03:28][%cal Oe6d4]} 31. Nxd5 {[%emt 0:01:29]} Kh7 {[%emt 0:00:47][%cal
Oe6c7]} 32. Qf2 {[%emt 0:02:58]} Qe4 {[%emt 0:01:25]} (32... Qg5 $16) 33. Ndc3
$36 {[%emt 0:00:26][%mdl 2048] White has strong initiative.} Qd3 {[%emt 0:01:
18]} (33... Qg6 $142 34. a5 Qg5 35. axb6 axb6) 34. Rf1 {[%emt 0:00:14]} Qg6 {
[%emt 0:02:06]} 35. Nd5 {[%emt 0:00:12]} Kg8 {[%emt 0:00:39]} (35... Qg5 $142)
36. Qh4 {[%emt 0:00:34] [#] Threatens to win with Ne7+.} Ng5 $2 {[%emt 0:00:37]
} (36... Qg5 {was called for.} 37. Qxg5 Nxg5) 37. Nef4 {[%emt 0:01:28] Pair of
Knights!} Qf5 {[%emt 0:00:30]} 38. Qh5 {[%emt 0:01:44] Weighted Error Value:
White=0.09 (flawless) /Black=0.26 (precise)} ({Don't play} 38. g4 Nxh3+ 39.
Qxh3 Qxg4+ 40. Qxg4 Bxg4 $18) 1-0

[Event "Berliner Einzelmeisterschaft 2002"]
[Site "Berlin"]
[Date "2022.04.21"]
[Round "7.4"]
[White "Hesse, Henrik"]
[Black "Nogly, Christoph"]
[Result "0-1"]
[ECO "D35"]
[WhiteElo "2191"]
[BlackElo "2245"]
[Annotator "TheRocket"]
[PlyCount "134"]
[EventDate "2022.??.??"]
[EventCountry "GER"]
[SourceTitle "SV Mattnetz Berlin e.V."]
[SourceDate "2022.04.23"]
[SourceVersion "1"]
[SourceVersionDate "2022.04.23"]
[SourceQuality "1"]
[TimeControl "40/5400+30:1800+30"]

1. c4 {[%emt 0:00:02]} e6 {[%emt 0:05:38]} 2. Nc3 {[%emt 0:00:28]} d5 {[%emt 0:
00:20]} 3. d4 {[%emt 0:00:26]} Nf6 {[%emt 0:00:06]} 4. cxd5 {[%emt 0:00:32]}
exd5 {[%emt 0:00:06]} 5. Bg5 {[%emt 0:00:33]} Be7 {[%emt 0:00:09]} 6. e3 {
[%emt 0:00:27]} h6 {[%emt 0:00:20]} 7. Bh4 {[%emt 0:00:31]} O-O {[%emt 0:00:43]
} 8. Bd3 {[%emt 0:00:29]} Re8 {[%emt 0:00:26]} 9. Nge2 {[%emt 0:02:06]} c6 {
[%emt 0:01:11]} 10. O-O {[%emt 0:00:18]} Nh5 {[%emt 0:01:56]} 11. Bxe7 {
[%emt 0:00:11]} Qxe7 {[%emt 0:00:02]} 12. Qd2 {[%emt 0:01:25]} Nd7 {[%emt 0:07:
39]} 13. Rae1 {[%emt 0:00:50]} Qg5 {[%emt 0:07:48]} 14. Nf4 {[%emt 0:22:08]}
Nf8 {[%emt 0:10:53]} 15. Nxh5 {[%emt 0:02:46]} Qxh5 {[%emt 0:00:02]} 16. f3 {
[%emt 0:08:54]} Qg5 {[%emt 0:02:01]} 17. Qf2 {[%emt 0:06:42]} Ne6 {[%emt 0:09:
13]} 18. b4 {[%emt 0:02:25]} b5 {[%emt 0:15:34]} 19. a4 {[%emt 0:10:34]} a6 {
[%emt 0:00:26]} 20. Ra1 {[%emt 0:06:25]} Bd7 {[%emt 0:00:45]} 21. Rfe1 {
[%emt 0:01:35]} Qf6 {[%emt 0:04:05]} 22. a5 {[%emt 0:12:14]} Re7 {[%emt 0:04:
08]} 23. e4 {[%emt 0:12:40]} dxe4 {[%emt 0:17:44]} 24. Nxe4 {[%emt 0:01:00]}
Qxd4 {[%emt 0:00:16]} 25. Qxd4 {[%emt 0:00:07]} Nxd4 {[%emt 0:00:02]} 26. Nc5 {
[%emt 0:01:29]} Rxe1+ {[%emt 0:03:56]} 27. Rxe1 {[%emt 0:00:04]} Bf5 {[%emt 0:
00:08]} 28. Bxf5 {[%emt 0:05:47]} Nxf5 {[%emt 0:00:02]} 29. Re4 {[%emt 0:00:14]
} Ra7 {[%emt 0:01:40]} 30. Re8+ {[%emt 0:00:04]} Kh7 {[%emt 0:00:05]} 31. Rb8 {
[%emt 0:01:08]} Nd4 {[%emt 0:01:57]} 32. Rb6 {[%emt 0:00:15]} Re7 {[%emt 0:00:
23]} 33. Nxa6 {[%emt 0:01:07]} Re1+ {[%emt 0:00:33]} 34. Kf2 {[%emt 0:00:00]}
Re2+ {[%emt 0:00:07]} 35. Kg3 {[%emt 0:01:06]} g5 {[%emt 0:00:55]} 36. Nb8 {
[%emt 0:00:32]} Nf5+ {[%emt 0:03:56]} 37. Kh3 {[%emt 0:00:01]} Ne3 {[%emt 0:00:
13]} 38. f4 {[%emt 0:01:08]} g4+ {[%emt 0:00:40]} 39. Kh4 {[%emt 0:00:16]} Rxg2
{[%emt 0:00:34]} 40. Rxc6 {[%emt 0:00:19]} Nf5+ {[%emt 0:00:45]} 41. Kh5 {
[%emt 0:30:39]} Ne3 {[%emt 0:26:13]} 42. Kh4 {[%emt 0:00:00]} Rxh2+ {[%emt 0:
00:17]} 43. Kg3 {[%emt 0:00:00]} Rg2+ {[%emt 0:00:09]} 44. Kh4 {[%emt 0:00:00]}
Nf5+ {[%emt 0:06:06]} 45. Kh5 {[%emt 0:00:00]} Ng7+ {[%emt 0:00:06]} 46. Kh4 {
[%emt 0:00:00]} Nf5+ {[%emt 0:00:03]} 47. Kh5 {[%emt 0:00:00]} g3 {[%emt 0:01:
24]} 48. Kg4 {[%emt 0:00:00]} Rh2 {[%emt 0:00:25]} 49. Rc1 {[%emt 0:00:00]} g2
{[%emt 0:00:12]} 50. Rg1 {[%emt 0:00:00]} Rh1 {[%emt 0:00:19]} 51. Rxg2 {
[%emt 0:00:00]} Ne3+ {[%emt 0:00:05]} 52. Kf3 {[%emt 0:00:00]} Nxg2 {[%emt 0:
00:07]} 53. Kxg2 {[%emt 0:00:00]} Ra1 {[%emt 0:00:15]} 54. Nc6 {[%emt 0:07:33]}
Ra3 {[%emt 0:00:53]} 55. Nd4 {[%emt 0:00:00]} Ra4 {[%emt 0:00:44]} 56. Nc6 {
[%emt 0:00:00]} Kg6 {[%emt 0:00:13]} 57. Kf3 {[%emt 0:00:00]} h5 {[%emt 0:00:
34]} 58. Ne7+ {[%emt 0:00:00]} Kf6 {[%emt 0:00:31]} 59. Nd5+ {[%emt 0:00:00]}
Kf5 {[%emt 0:00:10]} 60. Kg3 {[%emt 0:00:00]} Ra3+ {[%emt 0:01:16]} 61. Kh4 {
[%emt 0:00:00]} Rd3 {[%emt 0:01:00]} 62. Nc7 {[%emt 0:00:00]} Kxf4 {[%emt 0:00:
51]} 63. Nxb5 {[%emt 0:00:00]} Rd1 {[%emt 0:00:07]} 64. Kxh5 {[%emt 0:00:00]}
Rd5+ {[%emt 0:00:01]} 65. Kh6 {[%emt 0:00:00]} Rxb5 {[%emt 0:00:06]} 66. a6 {
[%emt 0:00:00]} Rxb4 {[%emt 0:00:07]} 67. a7 {[%emt 0:00:00]} Ra4 {[%emt 0:00:
06]} 0-1

[Event "Berliner Einzelmeisterschaft 2002"]
[Site "Berlin"]
[Date "2022.04.21"]
[Round "7.5"]
[White "Glek, Igor"]
[Black "Rietze, Clemens"]
[Result "1-0"]
[ECO "B10"]
[WhiteElo "2476"]
[BlackElo "2279"]
[Annotator "TheRocket"]
[PlyCount "79"]
[EventDate "2022.??.??"]
[EventCountry "GER"]
[SourceTitle "SV Mattnetz Berlin e.V."]
[SourceDate "2022.04.23"]
[SourceVersion "1"]
[SourceVersionDate "2022.04.23"]
[SourceQuality "1"]
[TimeControl "40/5400+30:1800+30"]

{[%evp 14,79,18,0,0,-14,-10,-18,40,35,53,0,0,7,45,32,39,0,0,14,64,56,82,52,39,
33,39,45,68,60,74,93,123,140,118,126,126,124,129,139,157,150,145,148,176,110,
275,274,250,240,229,146,174,180,337,366,970,973,962,953,949,893,899,1012,1278,
1247,29977,6622]} 1. e4 {[%emt 0:12:15]} c6 {[%emt 0:00:09]} 2. d3 {[%emt 0:04:
05]} d5 {[%emt 0:00:16]} 3. Nd2 {[%emt 0:00:05]} e5 {[%emt 0:00:08]} 4. Ngf3 {
[%emt 0:02:02]} Bd6 {[%emt 0:00:09]} 5. g3 {[%emt 0:01:48]} Nf6 {[%emt 0:00:14]
} 6. Bg2 {[%emt 0:00:46]} O-O {[%emt 0:00:09]} 7. O-O {[%emt 0:00:03]} Nbd7 {
[%emt 0:00:38]} 8. b3 {[%emt 0:02:49]} Re8 {[%emt 0:00:32] B10: Caro-Kann: 2
d3 and 2 c4.} 9. Bb2 {[%emt 0:00:07]} a5 {[%emt 0:00:21]} 10. a3 {[%emt 0:01:
28]} b6 {[%emt 0:07:17]} (10... dxe4 $11 11. Nxe4 Nxe4 12. dxe4 Qe7) 11. Re1
$14 {[%emt 0:17:24]} Bb7 {[%emt 0:07:49]} 12. Nh4 {[%emt 0:01:52]} (12. d4 $14)
12... Bf8 $11 {[%emt 0:15:04] [#]} 13. exd5 $146 {[%emt 0:19:16]} ({
Predecessor:} 13. Nf5 g6 14. Ne3 Rb8 15. a4 Bg7 16. Qe2 Qc7 17. h4 Rbd8 18.
Rad1 Nc5 19. Kh2 {0-1 (44) Nakamura,H (2736)-Svane,R (2613) Chess.com INT 2021}
) 13... Nxd5 {[%emt 0:04:21]} 14. Nc4 {[%emt 0:06:12][%cal Rc4e5]} Qc7 {
[%emt 0:05:11]} 15. d4 {[%emt 0:01:21]} exd4 {[%emt 0:02:51]} 16. Qxd4 {
[%emt 0:02:23]} N5f6 {[%emt 0:18:17]} (16... b5 $11) 17. Nf5 $14 {[%emt 0:04:
18]} c5 {[%emt 0:01:31]} 18. Qf4 {[%emt 0:02:45]} Qxf4 {[%emt 0:00:36]} 19.
gxf4 {[%emt 0:00:14]} Bxg2 {[%emt 0:00:12]} 20. Kxg2 {[%emt 0:00:01]} b5 {
[%emt 0:05:41]} 21. Ncd6 {[%emt 0:10:51]} Rxe1 {[%emt 0:06:17]} 22. Rxe1 {
[%emt 0:00:01]} Nd5 {[%emt 0:00:02] [#]} 23. Kf3 $1 {[%emt 0:01:38][%cal Of5h6]
Threatens to win with Nh6+! 0x0.0017ad110bf2dp-1022s more active pieces.} ({
But not} 23. Nxb5 Nxf4+ 24. Kg3 Ne6 $14) 23... Bxd6 {[%emt 0:04:26]} 24. Nxd6 {
[%emt 0:00:03]} a4 {[%emt 0:00:01]} 25. Nxb5 {[%emt 0:01:26]} f6 {[%emt 0:02:
55]} 26. Rd1 {[%emt 0:01:45]} N5b6 {[%emt 0:00:10]} 27. Rd6 {[%emt 0:01:29]}
Kf7 {[%emt 0:00:27]} 28. Rc6 {[%emt 0:01:15]} Ke7 {[%emt 0:03:23]} 29. Nd6 {
[%emt 0:01:21]} ({Better is} 29. Bc1 $18) 29... Rb8 $2 {[%emt 0:03:05] [#]
This move loses the game for Black.} (29... axb3 $16 30. cxb3 Rb8) 30. b4 $1
$18 {[%emt 0:01:20]} cxb4 {[%emt 0:02:21]} 31. axb4 {[%emt 0:00:02]} Nd5 {
[%emt 0:00:02]} 32. c3 {[%emt 0:01:20][%cal Bc2c3,Bc3c4][%mdl 32]} Kd8 {
[%emt 0:01:59]} 33. b5 {[%emt 0:01:34]} Ra8 $2 {[%emt 0:01:54]} (33... N7b6 {
was called for.} 34. Ba3 (34. c4 Nb4 $11) 34... Ne7) 34. Ba3 {[%emt 0:00:08]}
Nb8 $2 {[%emt 0:00:15]} (34... Rb8 35. c4 Nc7) 35. Rc8+ {[%emt 0:00:45]} Kd7 {
[%emt 0:00:03]} 36. c4 {[%emt 0:00:10]} Ne7 {[%emt 0:00:34]} 37. Rh8 {[%emt 0:
00:12]} h6 {[%emt 0:00:04]} 38. f5 {[%emt 0:00:27]} Kc7 {[%emt 0:00:22]} 39.
Ke4 {[%emt 0:00:24]} Kb6 {[%emt 0:00:22]} 40. Re8 {[%emt 0:00:20] Weighted
Error Value: White=0.11 (very precise) /Black=0.49} 1-0